bitfinex/quotes_BTCUSD_20250403
["timestamp","ask_amount","ask_price","bid_price","bid_amount"]
[1743646205026,6e-07,83608.0,83607.0,1.16081307]
[1743646205204,0.0003374,83642.0,83641.0,0.251072]
[1743646205784,0.0003374,83642.0,83641.0,0.30087175]
[1743646206410,0.00047591,83642.0,83641.0,0.30087175]
[1743646206828,0.00047591,83642.0,83641.0,0.25854732]
[1743646208190,0.00047591,83642.0,83641.0,0.57993712]
[1743646208343,0.00047591,83642.0,83641.0,0.72005712]
[1743646209247,0.00047591,83642.0,83641.0,0.70809733]
[1743646211378,0.00047591,83642.0,83641.0,0.56797733]
[1743646211604,0.00047591,83642.0,83641.0,0.70809733]
[1743646213251,0.00047591,83642.0,83641.0,0.70701357]
[1743646213811,0.00047591,83642.0,83641.0,0.31690533]
[1743646214013,0.04597591,83642.0,83641.0,0.55602233]
[1743646214261,0.04597591,83642.0,83641.0,0.56797733]
[1743646216329,0.00047591,83642.0,83641.0,0.70805733]
[1743646218037,0.00047591,83642.0,83641.0,0.39862732]
[1743646220905,0.00047591,83642.0,83641.0,0.44842707]
[1743646221133,0.00047591,83642.0,83641.0,0.75785708]
[1743646221461,0.00047591,83642.0,83641.0,0.87461268]
[1743646221678,0.00047591,83642.0,83641.0,0.87834947]
[1743646221860,0.00047591,83642.0,83641.0,0.90524831]
[1743646222061,9.1e-07,83642.0,83641.0,1.25024831]
[1743646222374,0.004,83669.0,83657.0,0.35022375]
[1743646222594,0.004,83669.0,83657.0,0.79973285]
[1743646222833,0.0003374,83672.0,83668.0,0.04979975]
[1743646222964,0.0003374,83726.0,83668.0,0.06175175]
[1743646223167,0.0003374,83726.0,83725.0,0.25582]
[1743646223379,0.00079931,83726.0,83725.0,0.25582]
[1743646224264,0.00079931,83726.0,83725.0,0.30561975]
[1743646224467,0.00079931,83726.0,83725.0,0.25582]
[1743646224835,0.00079931,83726.0,83725.0,0.30561975]
[1743646225028,0.00079931,83726.0,83725.0,0.25582]
[1743646226844,0.00079931,83726.0,83725.0,0.26494213]
[1743646228681,0.00079931,83726.0,83725.0,0.57437123]
[1743646232623,8e-07,83791.0,83788.0,0.011934]
[1743646232881,8e-07,83791.0,83790.0,0.016934]
[1743646233052,3e-07,83797.0,83796.0,0.255607]
[1743646233246,3e-07,83797.0,83796.0,0.3723626]
[1743646233653,0.00013895,83797.0,83796.0,0.3723626]
[1743646233885,0.00013895,83797.0,83796.0,0.255607]
[1743646239825,0.0001685,83810.0,83804.0,0.011932]
[1743646240105,0.25119747,83810.0,83809.0,0.005]
[1743646241796,0.01256047,83810.0,83809.0,0.005]
[1743646245381,0.011934,83794.0,83779.0,0.011936]
[1743646245613,0.011934,83792.0,83791.0,0.005]
[1743646245816,0.011934,83792.0,83776.0,0.011936]
[1743646245817,0.011935,83786.0,83783.0,0.005]
[1743646246360,0.250641,83785.0,83783.0,0.005]
[1743646247049,0.011935,83784.0,83783.0,0.005]
[1743646247874,0.250652,83781.0,83780.0,0.005]
[1743646248277,0.36752882,83781.0,83780.0,0.005]
[1743646248486,0.36752882,83781.0,83755.0,0.23879]
[1743646248487,0.011937,83771.0,83764.0,0.005]
[1743646248687,0.25053724,83765.0,83764.0,0.005]
[1743646248976,0.36729284,83765.0,83764.0,0.005]
[1743646250438,0.25053724,83765.0,83764.0,0.005]
[1743646250638,0.250696,83767.0,83764.0,0.005]
[1743646250867,0.238763,83765.0,83764.0,0.005]
[1743646251079,0.238763,83765.0,83742.0,0.238827]
[1743646251080,0.011939,83756.0,83755.0,0.005]
[1743646251272,0.3674826,83756.0,83755.0,0.005]
[1743646251886,0.011939,83754.0,83753.0,0.005]
[1743646252093,0.13167965,83754.0,83753.0,0.005]
[1743646252975,0.1286946,83754.0,83753.0,0.005]
[1743646253187,0.1286946,83754.0,83753.0,0.00513865]
[1743646253756,0.1286946,83754.0,83753.0,0.01260078]
[1743646256627,0.13167965,83754.0,83753.0,0.00760078]
[1743646257099,0.1167556,83754.0,83753.0,0.01260078]
[1743646257467,0.1286946,83754.0,83753.0,0.01260078]
[1743646257666,0.13167959,83754.0,83753.0,0.00760078]
[1743646258259,0.1286946,83754.0,83753.0,0.00793798]
[1743646258858,0.47167986,83754.0,83753.0,0.00793798]
[1743646259056,0.4686946,83754.0,83753.0,0.00793798]
[1743646259263,0.4686946,83754.0,83753.0,0.00047585]
[1743646260468,0.63036609,83754.0,83753.0,8.5e-07]
[1743646261272,0.7031346,83754.0,83753.0,8.5e-07]
[1743646261654,0.238769,83763.0,83753.0,0.00500085]
[1743646261947,0.4146,83802.0,83778.0,0.05]
[1743646261948,1.371459,83779.0,83778.0,0.05]
[1743646262184,0.0001682,83792.0,83791.0,0.238689]
[1743646262291,0.0001682,83792.0,83791.0,0.255623]
[1743646262489,0.0001682,83792.0,83791.0,0.005]
[1743646263102,0.0001682,83792.0,83791.0,0.055]
[1743646263302,0.0001682,83792.0,83791.0,0.06246297]
[1743646263503,0.00030644,83792.0,83791.0,0.06246297]
[1743646263707,0.00030644,83792.0,83791.0,0.30115197]
[1743646263929,0.00030644,83792.0,83791.0,0.26308597]
[1743646264470,0.00030644,83792.0,83791.0,0.41490541]
[1743646266035,0.00030644,83792.0,83791.0,1.23109011]
[1743646266218,0.0001685,83810.0,83796.0,0.250607]
[1743646266418,0.0001685,83810.0,83809.0,0.016931]
[1743646266622,5e-07,83810.0,83809.0,0.70272898]
[1743646266829,5e-07,83810.0,83809.0,0.8062001]
[1743646267053,5e-07,83810.0,83809.0,0.3144291]
[1743646267255,5e-07,83810.0,83809.0,0.005]
[1743646267452,5e-07,83810.0,83809.0,0.32751871]
[1743646267728,5e-07,83810.0,83809.0,0.3263601]
[1743646267912,5e-07,83810.0,83809.0,0.33382307]
[1743646268939,5e-07,83810.0,83809.0,0.02439397]
[1743646269141,5e-07,83810.0,83809.0,0.01246297]
[1743646270754,0.2386355,83810.0,83809.0,0.01246297]
[1743646271331,0.2386355,83810.0,83809.0,0.005]
[1743646272721,0.238657,83802.0,83801.0,0.005]
[1743646273054,0.011932,83803.0,83801.0,0.005]
[1743646273256,0.238657,83802.0,83801.0,0.005]
[1743646274570,0.011934,83793.0,83792.0,0.00746297]
[1743646274827,0.011934,83793.0,83792.0,0.005]
[1743646275026,0.250612,83795.0,83792.0,0.005]
[1743646275382,0.238683,83793.0,83792.0,0.005]
[1743646275684,0.250617,83793.0,83792.0,0.005]
[1743646276108,0.250642,83785.0,83784.0,0.005]
[1743646276311,0.238707,83785.0,83784.0,0.005]
[1743646277273,0.250642,83785.0,83784.0,0.005]
[1743646279519,0.238707,83785.0,83784.0,0.005]
[1743646281971,0.238707,83785.0,83784.0,0.005337]
[1743646288705,0.238707,83785.0,83784.0,0.000337]
[1743646288706,0.3673976,83785.0,83784.0,0.000337]
[1743646288932,0.3673976,83785.0,83784.0,0.005337]
[1743646290142,0.3673976,83785.0,83784.0,0.000337]
[1743646290476,0.3673976,83785.0,83784.0,0.005337]
[1743646290648,0.3673976,83785.0,83784.0,0.000337]
[1743646291411,0.5071976,83785.0,83784.0,0.000337]
[1743646291622,0.8471976,83785.0,83784.0,0.000337]
[1743646291817,0.8953976,83785.0,83784.0,0.000337]
[1743646292024,0.9427976,83785.0,83784.0,0.000337]
[1743646293988,0.8029976,83785.0,83784.0,0.000337]
[1743646294160,0.9427976,83785.0,83784.0,0.000337]
[1743646296295,0.8029976,83785.0,83784.0,0.000337]
[1743646296523,0.6954626,83785.0,83784.0,0.000337]
[1743646296923,0.7073976,83785.0,83784.0,0.050337]
[1743646297128,0.7073976,83785.0,83784.0,0.000337]
[1743646297528,0.7073976,83785.0,83784.0,0.050337]
[1743646297741,0.3673976,83785.0,83784.0,0.000337]
[1743646304191,0.7073976,83785.0,83784.0,0.000337]
[1743646304758,0.351935,83784.0,83783.0,2.4e-07]
[1743646304955,0.5622906,83784.0,83783.0,2.4e-07]
[1743646317439,0.02500293,83801.0,83796.0,0.011933]
[1743646317649,0.02500293,83801.0,83800.0,0.066933]
[1743646317810,0.02500293,83801.0,83800.0,0.06809236]
[1743646318259,5e-07,83810.0,83809.0,0.016931]
[1743646318464,5e-07,83810.0,83809.0,0.005]
[1743646319392,0.00046156,83810.0,83809.0,0.0243964]
[1743646319901,0.01239256,83810.0,83809.0,0.0243964]
[1743646320137,0.00046156,83810.0,83809.0,0.0243964]
[1743646320617,0.00046156,83810.0,83809.0,0.01246225]
[1743646320778,0.00046156,83810.0,83809.0,0.07439325]
[1743646320943,0.00046156,83810.0,83809.0,0.02555128]
[1743646322106,0.00046156,83810.0,83809.0,0.05239839]
[1743646323128,0.00046156,83810.0,83809.0,0.63986309]
[1743646323340,0.00046156,83810.0,83809.0,0.64243566]
[1743646323512,0.00046156,83810.0,83809.0,0.63597068]
[1743646325119,0.00046156,83810.0,83809.0,0.6237921]
[1743646326275,0.00046156,83810.0,83809.0,0.01246225]
[1743646327433,0.00046156,83810.0,83809.0,0.005]
[1743646328291,0.00046156,83810.0,83809.0,0.016931]
[1743646328657,0.00046156,83810.0,83809.0,0.005]
[1743646329271,0.4146,83856.0,83818.0,0.005]
[1743646329520,0.0925,83860.0,83818.0,0.005]
[1743646329521,0.004,83849.0,83826.0,0.005]
[1743646329739,0.011927,83840.0,83826.0,0.016929]
[1743646329936,0.26372426,83827.0,83826.0,0.005]
[1743646330169,0.011929,83823.0,83822.0,0.005]
[1743646330350,0.01193,83821.0,83820.0,0.005]
[1743646330514,0.1286856,83821.0,83820.0,0.005]
[1743646330730,0.1167556,83821.0,83820.0,0.005]
[1743646331324,0.1167556,83821.0,83816.0,0.005]
[1743646331325,0.250536,83820.0,83816.0,0.005]
[1743646331545,0.250545,83817.0,83816.0,0.005]
[1743646332006,0.238615,83817.0,83816.0,0.005]
[1743646333258,0.3673006,83817.0,83816.0,0.005]
[1743646334850,0.3673006,83817.0,83802.0,0.011932]
[1743646334851,0.250578,83806.0,83805.0,0.005]
[1743646335049,0.3673336,83806.0,83805.0,0.005]
[1743646335258,0.01193,83820.0,83811.0,0.005]
[1743646335471,0.1167556,83816.0,83814.0,0.005]
[1743646335724,0.011931,83815.0,83814.0,0.005]
[1743646335928,0.1286866,83815.0,83814.0,0.005]
[1743646336086,0.1167556,83815.0,83814.0,0.055]
[1743646336507,0.3553756,83815.0,83814.0,0.005]
[1743646336731,0.238616,83817.0,83816.0,0.005]
[1743646336928,0.590526,83824.0,83821.0,0.005]
[1743646337127,0.35193,83822.0,83821.0,0.005]
[1743646337327,0.4686856,83822.0,83821.0,0.005]
[1743646337535,0.4686856,83822.0,83814.0,0.005]
[1743646337536,0.250551,83815.0,83814.0,0.005]
[1743646337771,0.250551,83815.0,83788.0,0.01624892]
[1743646337772,0.011932,83803.0,83797.0,0.005]
[1743646337977,0.011933,83798.0,83797.0,0.005]
[1743646338129,0.3673576,83798.0,83797.0,0.005]
[1743646339488,0.36749578,83798.0,83797.0,0.005]
[1743646341196,0.35556278,83798.0,83797.0,0.005]
[1743646342423,0.36749578,83798.0,83797.0,0.005]
[1743646343500,0.238686,83792.0,83791.0,0.005]
[1743646343664,0.011935,83786.0,83785.0,0.005]
[1743646344094,0.238702,83787.0,83785.0,0.005]
[1743646344293,0.3554446,83791.0,83786.0,0.005]
[1743646344497,0.238676,83796.0,83795.0,0.005]
[1743646344813,0.238702,83787.0,83786.0,0.005]
[1743646345000,0.250637,83787.0,83786.0,0.005]
[1743646345402,0.3673926,83787.0,83786.0,0.005]
[1743646346159,0.3673926,83787.0,83786.0,0.01245882]
[1743646346960,0.238689,83791.0,83790.0,0.005]
[1743646347120,0.3554446,83791.0,83790.0,0.005]
[1743646348158,0.3673786,83791.0,83790.0,0.005]
[1743646348882,0.011934,83789.0,83788.0,0.005]
[1743646349176,0.011934,83789.0,83785.0,0.005]
[1743646349177,0.250638,83786.0,83785.0,0.005]
[1743646349375,0.3673936,83786.0,83785.0,0.005]
[1743646349911,0.011935,83785.0,83784.0,0.005]
[1743646350023,0.13167466,83785.0,83784.0,0.005]
[1743646350280,0.590644,83784.0,83783.0,0.0003372]
[1743646350519,0.7073996,83784.0,83783.0,0.0003372]
[1743646359850,0.70728024,83784.0,83783.0,0.0003372]
[1743646362067,0.70728024,83784.0,83783.0,2e-07]
[1743646362068,1.33242425,83784.0,83783.0,2e-07]
[1743646362875,1.21568024,83784.0,83783.0,2e-07]
[1743646366654,1.21568024,83784.0,83783.0,0.0500002]
[1743646366893,1.21568024,83784.0,83783.0,2e-07]
[1743646372637,1.35736024,83784.0,83783.0,2e-07]
[1743646373286,0.80108024,83784.0,83783.0,2e-07]
[1743646373423,0.94272024,83784.0,83783.0,2e-07]
[1743646374467,1.05946425,83784.0,83783.0,2e-07]
[1743646376112,0.250706,83763.0,83762.0,0.005]
[1743646376313,0.3674616,83763.0,83762.0,0.005]
[1743646376521,0.3924614,83763.0,83762.0,0.005]
[1743646377329,0.39259948,83763.0,83762.0,0.005]
[1743646377495,0.011938,83762.0,83761.0,0.009]
[1743646377696,0.238823,83744.0,83739.0,0.3922856]
[1743646378107,0.238824,83744.0,83739.0,0.1415086]
[1743646378306,0.238829,83742.0,83739.0,0.1415086]
[1743646379158,0.0369408,83740.0,83739.0,0.1415086]
[1743646379364,0.1536964,83740.0,83739.0,0.1415086]
[1743646390013,0.1536964,83740.0,83739.0,0.141846]
[1743646390185,0.1538651,83740.0,83739.0,0.141846]
[1743646391025,0.1419241,83740.0,83739.0,0.141846]
[1743646391230,0.0251685,83740.0,83739.0,0.141846]
[1743646395642,0.0371095,83740.0,83739.0,0.141846]
[1743646397996,0.0251685,83740.0,83739.0,0.141846]
[1743646399308,0.1538651,83740.0,83739.0,0.141846]
[1743646399506,0.4938651,83740.0,83739.0,0.141846]
[1743646400499,0.9084651,83740.0,83739.0,1e-06]
[1743646400703,0.6158028,83731.0,83730.0,1e-06]
[1743646400920,0.8725184,83731.0,83730.0,1e-06]
[1743646401902,0.8726564,83731.0,83730.0,1e-06]
[1743646402500,0.011947,83703.0,83701.0,0.004]
[1743646402706,0.011947,83703.0,83694.0,4e-08]
[1743646402707,0.0249998,83700.0,83694.0,4e-08]
[1743646402910,0.3769478,83694.0,83660.0,0.0499]
[1743646403144,0.45845548,83694.0,83662.0,0.011952]
[1743646403342,0.5211478,83694.0,83675.0,0.25097]
[1743646403544,0.5091998,83694.0,83684.0,0.238992]
[1743646403826,0.0001379,83694.0,83686.0,0.011949]
[1743646403980,0.0001379,83694.0,83685.0,0.011949]
[1743646403981,0.0251377,83694.0,83685.0,0.011949]
[1743646404183,0.0251377,83694.0,83682.0,0.0457]
[1743646404592,0.0251377,83694.0,83684.0,0.10495951]
[1743646404593,0.0249998,83689.0,83684.0,0.10495951]
[1743646405276,0.2639798,83689.0,83684.0,0.10495951]
[1743646406569,0.0249998,83689.0,83685.0,0.011949]
[1743646406782,0.2391059,83694.0,83685.0,0.011949]
[1743646406783,0.0001379,83694.0,83693.0,0.011948]
[1743646406995,0.0001379,83694.0,83692.0,0.00116697]
[1743646407213,0.0249998,83692.0,83690.0,0.00116704]
[1743646407436,0.0249998,83692.0,83689.0,0.011949]
[1743646407651,0.0249998,83692.0,83688.0,0.011949]
[1743646410578,0.23899,83686.0,83682.0,0.0457]
[1743646410813,0.238983,83688.0,83679.0,0.239008]
[1743646411037,0.238983,83688.0,83680.0,0.01195]
[1743646411554,0.238983,83688.0,83681.0,0.01195]
[1743646411959,0.238983,83688.0,83682.0,0.00116768]
[1743646412577,0.238983,83688.0,83681.0,0.01195]
[1743646413299,0.238983,83688.0,83682.0,0.00116768]
[1743646414858,0.238983,83688.0,83680.0,0.01195]
[1743646415089,0.23899,83686.0,83682.0,0.0001687]
[1743646415279,0.238995,83684.0,83682.0,0.0001687]
[1743646416870,0.238995,83684.0,83677.0,0.2461327]
[1743646418672,0.23899,83686.0,83678.0,0.01195]
[1743646418928,0.23899,83686.0,83671.0,0.24676249]
[1743646418929,0.0369508,83672.0,83671.0,0.00773349]
[1743646419152,0.1537064,83672.0,83671.0,0.00773349]
[1743646419423,0.16416357,83672.0,83671.0,0.00773349]
[1743646419673,0.03545697,83672.0,83671.0,0.00773349]
[1743646419871,0.0249998,83672.0,83671.0,0.00773349]
[1743646420989,0.0249998,83672.0,83671.0,0.004]
[1743646421176,0.1537064,83672.0,83671.0,0.004]
[1743646422968,0.1417554,83672.0,83671.0,0.004]
[1743646423159,0.0249998,83672.0,83671.0,0.004]
[1743646423373,0.1537064,83672.0,83671.0,0.004]
[1743646423665,0.15669455,83672.0,83671.0,0.004]
[1743646425458,0.1537064,83672.0,83671.0,0.004]
[1743646426104,0.15669468,83672.0,83671.0,0.004]
[1743646426889,0.15669468,83672.0,83671.0,0.0041687]
[1743646437401,0.1537064,83672.0,83671.0,0.0041687]
[1743646439333,0.0249998,83672.0,83671.0,0.0041687]
[1743646441339,0.0253372,83677.0,83676.0,0.250967]
[1743646441511,0.0253372,83677.0,83674.0,0.239022]
[1743646442838,0.0249998,83676.0,83674.0,0.239022]
[1743646443210,0.0249998,83676.0,83671.0,0.0041687]
[1743646443442,0.0249998,83676.0,83672.0,0.250979]
[1743646443617,0.0249998,83676.0,83671.0,0.0161197]
[1743646443812,0.0249998,83676.0,83674.0,0.250973]
[1743646444722,0.0249998,83675.0,83674.0,0.250973]
[1743646445954,0.0003374,83677.0,83676.0,0.01195]
[1743646446113,0.0003374,83677.0,83676.0,0.05881782]
[1743646447765,0.0003374,83677.0,83676.0,0.06255162]
[1743646447987,0.0003374,83677.0,83676.0,0.59390722]
[1743646448298,0.0471,83717.0,83676.0,0.59390722]
[1743646448299,0.0249998,83708.0,83693.0,0.250916]
[1743646448500,0.0249998,83707.0,83693.0,0.854276]
[1743646449028,0.0249998,83711.0,83693.0,0.86307061]
[1743646449233,0.0249998,83707.0,83693.0,0.86307061]
[1743646451836,0.238932,83706.0,83693.0,0.86307061]
[1743646452037,0.0249998,83707.0,83693.0,0.86307061]
[1743646452467,0.0249998,83707.0,83693.0,0.87359769]
[1743646453257,0.238961,83696.0,83693.0,0.4146]
[1743646453461,0.238961,83696.0,83693.0,0.55592]
[1743646453690,0.238955,83698.0,83693.0,0.55592]
[1743646454913,0.238982,83688.0,83687.0,0.10869228]
[1743646455143,0.2759308,83688.0,83687.0,0.10869228]
[1743646455391,0.2639818,83688.0,83687.0,0.10869228]
[1743646456118,0.2639818,83688.0,83687.0,0.10495951]
[1743646456330,0.3807374,83688.0,83687.0,0.10495951]
[1743646456507,0.3926864,83688.0,83687.0,0.10495951]
[1743646457068,0.23901,83679.0,83672.0,0.011951]
[1743646458281,0.23901,83679.0,83673.0,0.011951]
[1743646459135,0.23901,83679.0,83673.0,0.250975]
[1743646462055,0.0249998,83680.0,83673.0,0.250975]
[1743646462635,0.0249998,83679.0,83673.0,0.250975]
[1743646463054,0.0253372,83679.0,83673.0,0.250975]
[1743646463681,0.2643462,83679.0,83673.0,0.011951]
[1743646464245,0.2643462,83679.0,83673.0,0.250975]
[1743646465675,0.0253372,83679.0,83676.0,0.239017]
[1743646465900,0.0003374,83679.0,83678.0,0.01195]
[1743646466096,0.0253372,83679.0,83678.0,0.01195]
[1743646466512,0.0053372,83679.0,83678.0,0.01195]
[1743646467083,0.0053372,83679.0,83674.0,0.0121197]
[1743646467449,0.0053372,83679.0,83675.0,0.250969]
[1743646468048,0.0053372,83679.0,83678.0,0.250961]
[1743646471865,0.0053372,83680.0,83679.0,0.01195]
[1743646472040,0.0053372,83680.0,83676.0,0.01195]
[1743646472250,0.239008,83679.0,83674.0,0.0001687]
[1743646472447,0.2443452,83679.0,83674.0,0.0001687]
[1743646472668,0.0053372,83679.0,83675.0,0.011951]
[1743646473489,0.0053372,83679.0,83678.0,0.01195]
[1743646475344,0.0053372,83682.0,83678.0,0.01195]
[1743646475538,0.0053372,83679.0,83678.0,0.01195]
[1743646475746,0.0056746,83679.0,83678.0,0.01195]
[1743646477640,0.0056746,83679.0,83675.0,0.250971]
[1743646479354,0.0056746,83679.0,83677.0,0.250963]
[1743646480687,0.0003374,83679.0,83678.0,0.01311816]
[1743646481036,0.0003374,83679.0,83678.0,0.17737293]
[1743646482018,0.0003374,83679.0,83678.0,0.60168022]
[1743646482234,0.0003374,83679.0,83678.0,0.60051289]
[1743646484265,0.0003374,83679.0,83678.0,0.59453953]
[1743646485008,0.0003374,83679.0,83678.0,0.68212789]
[1743646485760,0.0003374,83679.0,83678.0,0.67712789]
[1743646496932,0.0003374,83679.0,83678.0,0.58402789]
[1743646499025,0.0003374,83679.0,83678.0,0.58419659]
[1743646501838,0.0003374,83679.0,83678.0,0.45549099]
[1743646502042,0.2393454,83679.0,83678.0,0.00390263]
[1743646502244,0.0003374,83679.0,83678.0,0.01585263]
[1743646502454,0.0003374,83679.0,83678.0,0.0170205]
[1743646503173,0.0003374,83679.0,83678.0,0.5483761]
[1743646503395,0.0003374,83679.0,83678.0,0.58423854]
[1743646503607,0.0003374,83679.0,83678.0,0.45553294]
[1743646503806,0.0003374,83679.0,83678.0,0.43045263]
[1743646504009,0.2446826,83679.0,83678.0,0.55858263]
[1743646504203,0.2446826,83679.0,83678.0,0.1402487]
[1743646505813,0.2446826,83679.0,83678.0,0.0001687]
[1743646506013,0.2566326,83679.0,83678.0,0.0001687]
[1743646506273,0.2446826,83679.0,83678.0,0.0001687]
[1743646510074,0.5846826,83679.0,83678.0,0.0001687]
[1743646510372,0.5966326,83679.0,83678.0,0.0001687]
[1743646512592,0.8102882,83679.0,83678.0,0.0001687]
[1743646514413,0.4425746,83679.0,83678.0,0.0001687]
[1743646514585,0.0972374,83679.0,83678.0,0.0001687]
[1743646514816,0.1025746,83679.0,83678.0,0.0001687]
[1743646515021,0.0056746,83679.0,83678.0,0.0001687]
[1743646515236,0.0003374,83679.0,83678.0,0.0001687]
[1743646515436,0.0056746,83679.0,83678.0,0.00133669]
[1743646515658,0.0056746,83679.0,83678.0,0.0001687]
[1743646515979,0.0003374,83679.0,83678.0,0.01328671]
[1743646516174,0.0056746,83679.0,83678.0,0.01328671]
[1743646516823,0.0056746,83679.0,83678.0,0.0121187]
[1743646517080,0.0003374,83679.0,83678.0,0.0121187]
[1743646520659,0.0056746,83679.0,83678.0,0.0121187]
[1743646520881,0.0003374,83679.0,83678.0,0.0121187]
[1743646521110,0.0056746,83679.0,83678.0,0.0121187]
[1743646521349,0.0003374,83679.0,83678.0,0.0001687]
[1743646521588,0.0539746,83679.0,83678.0,0.0001687]
[1743646522512,0.0659246,83679.0,83678.0,0.0001687]
[1743646526209,0.0539746,83679.0,83678.0,0.0001687]
[1743646526406,0.0056746,83679.0,83678.0,0.0001687]
[1743646526992,0.0176246,83679.0,83678.0,0.0001687]
[1743646531043,0.0056746,83679.0,83678.0,0.0001687]
[1743646532173,0.0176246,83679.0,83678.0,0.0001687]
[1743646534981,0.0056746,83679.0,83678.0,0.0001687]
[1743646535196,0.0176246,83679.0,83678.0,0.0001687]
[1743646535560,0.1813802,83679.0,83678.0,0.0001687]
[1743646541996,0.0526746,83679.0,83678.0,0.0001687]
[1743646542282,0.0056746,83679.0,83678.0,0.0001687]
[1743646543031,0.0176246,83679.0,83678.0,0.0001687]
[1743646548117,0.0003374,83679.0,83678.0,0.0121187]
[1743646548343,0.0056746,83679.0,83678.0,0.0121187]
[1743646548605,0.0056746,83679.0,83678.0,0.0001687]
[1743646549611,0.0003374,83679.0,83678.0,0.0001687]
[1743646550052,0.0056746,83679.0,83678.0,0.0001687]
[1743646550250,0.0003374,83679.0,83678.0,0.01328665]
[1743646550530,0.0056746,83679.0,83678.0,0.01328665]
[1743646550667,0.0056746,83679.0,83678.0,0.0170208]
[1743646550874,0.0056746,83679.0,83678.0,0.01585285]
[1743646551277,0.0003374,83679.0,83678.0,0.01585285]
[1743646551681,0.0003374,83679.0,83678.0,0.02332083]
[1743646552637,0.0176246,83679.0,83678.0,0.01137083]
[1743646553577,0.0176246,83679.0,83678.0,0.00390285]
[1743646554586,0.0056746,83679.0,83678.0,0.0001687]
[1743646554812,0.0056746,83679.0,83678.0,0.0121187]
[1743646555544,0.0056746,83679.0,83678.0,0.0001687]
[1743646555765,0.0056746,83679.0,83678.0,0.00763706]
[1743646555955,0.0056746,83679.0,83678.0,0.01137121]
[1743646557050,0.0003374,83679.0,83678.0,0.02448943]
[1743646557463,0.0056746,83679.0,83678.0,0.02448943]
[1743646557684,0.0056746,83679.0,83678.0,0.02448893]
[1743646557835,0.0056746,83679.0,83678.0,0.02332121]
[1743646558250,0.0056746,83679.0,83678.0,0.01137121]
[1743646561446,0.0176246,83679.0,83678.0,0.01137121]
[1743646562739,0.1373678,83679.0,83678.0,0.00390285]
[1743646563067,0.1343802,83679.0,83678.0,0.0001687]
[1743646567764,0.0056746,83679.0,83678.0,0.0001687]
[1743646567957,0.0056746,83679.0,83678.0,0.0121187]
[1743646568160,0.0003374,83679.0,83678.0,0.01328632]
[1743646568645,0.0003374,83679.0,83678.0,0.02075567]
[1743646568925,0.0003374,83679.0,83678.0,0.13751127]
[1743646569675,0.0003374,83679.0,83678.0,0.14124512]
[1743646570083,0.0003374,83679.0,83678.0,0.55352782]
[1743646570282,0.0003374,83679.0,83678.0,0.43677222]
[1743646571350,0.0003374,83679.0,83678.0,0.4258032]
[1743646572852,0.0003374,83679.0,83678.0,0.5658032]
[1743646573295,0.0003374,83679.0,83678.0,0.5777532]
[1743646577268,0.0003374,83679.0,83678.0,0.6945088]
[1743646578237,0.0003374,83679.0,83678.0,0.74973574]
[1743646578436,0.0003374,83679.0,83678.0,0.80441047]
[1743646579550,0.0003374,83679.0,83678.0,0.81635872]
[1743646579977,0.0003374,83679.0,83678.0,1.16135872]
[1743646580175,4e-07,83679.0,83678.0,1.16135872]
[1743646580581,0.0004753,83694.0,83693.0,0.350616]
[1743646580785,0.0004753,83694.0,83693.0,1.3619716]
[1743646581054,0.0004753,83694.0,83693.0,1.39898321]
[1743646581276,0.0004753,83694.0,83693.0,1.41840081]
[1743646581479,0.0004753,83694.0,83693.0,1.42810939]
[1743646585288,0.0004753,83694.0,83693.0,1.39109778]
[1743646585838,3e-07,83694.0,83693.0,1.39109778]
[1743646586030,0.0053372,83730.0,83729.0,0.011943]
[1743646586205,0.0053372,83730.0,83729.0,0.250808]
[1743646587271,4.608e-05,83734.0,83731.0,0.250801]
[1743646587421,0.0053372,83732.0,83731.0,0.250801]
[1743646587824,0.0053372,83728.0,83727.0,0.011943]
[1743646588422,0.00523749,83730.0,83729.0,0.011943]
[1743646588619,0.00523749,83730.0,83727.0,0.011943]
[1743646589026,0.00523749,83728.0,83727.0,0.011943]
[1743646589228,0.00523749,83728.0,83727.0,0.250814]
[1743646589927,4.608e-05,83734.0,83733.0,0.250796]
[1743646590094,0.00528357,83734.0,83733.0,0.011942]
[1743646590532,4.608e-05,83734.0,83733.0,0.011942]
[1743646590681,0.00523749,83731.0,83730.0,0.011943]
[1743646593510,4.608e-05,83734.0,83727.0,0.250814]
[1743646593511,0.00540609,83728.0,83727.0,0.250814]
[1743646596264,0.00540609,83728.0,83723.0,0.250825]
[1743646596600,0.00523749,83726.0,83724.0,0.011944]
[1743646596741,0.00523749,83726.0,83725.0,0.25082]
[1743646596938,0.00523749,83726.0,83724.0,0.011944]
[1743646597174,0.00523749,83726.0,83723.0,0.250825]
[1743646597355,0.00523749,83726.0,83724.0,0.011944]
[1743646597988,0.00523749,83726.0,83721.0,0.250832]
[1743646598349,0.25605549,83726.0,83721.0,0.011944]
[1743646598555,0.01718149,83720.0,83719.0,0.0037318]
[1743646598756,0.00523749,83703.0,83702.0,0.01791262]
[1743646598953,0.00523749,83703.0,83702.0,0.02985962]
[1743646599490,0.00523749,83703.0,83702.0,0.01791262]
[1743646599648,0.25612449,83703.0,83702.0,0.00597087]
[1743646600184,0.00523749,83697.0,83694.0,0.36834935]
[1743646600964,0.01718449,83697.0,83694.0,0.10997248]
[1743646601611,0.01718449,83697.0,83694.0,0.10623945]
[1743646602231,0.01718549,83695.0,83694.0,0.10623945]
[1743646602402,0.011948,83693.0,83689.0,0.00373303]
[1743646602601,0.00523749,83690.0,83689.0,0.00373303]
[1743646603133,0.00523749,83690.0,83689.0,0.011949]
[1743646604491,0.00523749,83688.0,83687.0,0.011949]
[1743646605824,0.00523749,83688.0,83687.0,0.012286]
[1743646606175,0.011947,83699.0,83687.0,0.012286]
[1743646606176,0.00523749,83699.0,83698.0,0.238954]
[1743646606375,4.605e-05,83703.0,83702.0,0.250889]
[1743646606980,4.605e-05,83703.0,83702.0,0.3676446]
[1743646607812,4.605e-05,83703.0,83702.0,0.37511047]
[1743646609683,4.605e-05,83703.0,83702.0,0.3788435]
[1743646609888,4.605e-05,83703.0,83702.0,0.3878508]
[1743646611045,4.605e-05,83703.0,83702.0,0.8024505]
[1743646614413,0.00528354,83703.0,83702.0,0.8024505]
[1743646614622,0.00528354,83703.0,83702.0,0.9423305]
[1743646614981,4.605e-05,83703.0,83702.0,0.9423305]